bitfinex/quotes_BTCUSD_20250119
["timestamp","ask_amount","ask_price","bid_price","bid_amount"]
[1737328165806,0.37673241,101410.0,101390.0,0.295864]
[1737328165981,0.37674241,101400.0,101380.0,0.493171]
[1737328166212,0.15,101400.0,101380.0,0.394532]
[1737328166329,0.42398341,101400.0,101380.0,0.295893]
[1737328166564,0.12812241,101390.0,101380.0,0.098638]
[1737328166733,0.37675341,101390.0,101370.0,0.29690734]
[1737328167067,0.15,101390.0,101380.0,0.098638]
[1737328167269,0.18360892,101410.0,101370.0,0.197297]
[1737328167471,0.15,101400.0,101390.0,0.098629]
[1737328167677,0.15,101400.0,101380.0,0.59179]
[1737328167678,0.37674141,101400.0,101380.0,0.59179]
[1737328167907,0.18360892,101410.0,101400.0,0.098619]
[1737328168058,0.15,101400.0,101390.0,0.295862]
[1737328168693,0.57395041,101410.0,101390.0,0.295862]
[1737328168916,0.28223492,101400.0,101380.0,0.295896]
[1737328169136,0.29173249,101410.0,101380.0,0.295896]
[1737328169137,0.25739335,101420.0,101400.0,0.098619]
[1737328169339,0.25739335,101420.0,101400.0,0.295836]
[1737328169340,0.15,101410.0,101400.0,0.295836]
[1737328169482,0.15,101410.0,101400.0,0.295837]
[1737328170535,0.00049646,101420.0,101410.0,0.098609]
[1737328170735,0.00049646,101420.0,101410.0,0.09959489]
[1737328170943,0.00049646,101420.0,101410.0,1.84961539]
[1737328171183,0.00049646,101420.0,101410.0,1.8486295]
[1737328171397,0.00049646,101420.0,101410.0,0.41502058]
[1737328171885,0.02789901,101440.0,101430.0,0.09859]
[1737328172084,0.02804792,101440.0,101430.0,0.09859]
[1737328172492,0.02804792,101440.0,101420.0,0.098596]
[1737328172493,0.40882984,101440.0,101420.0,0.098596]
[1737328172694,0.15,101430.0,101420.0,0.098596]
[1737328172956,0.02804792,101440.0,101430.0,0.09859]
[1737328173185,0.17804792,101440.0,101430.0,0.09859]
[1737328173358,0.02804792,101440.0,101430.0,0.25949457]
[1737328173503,0.02804792,101440.0,101430.0,0.19310349]
[1737328174236,0.00403762,101440.0,101430.0,0.26048021]
[1737328174412,0.00403762,101440.0,101430.0,0.25949457]
[1737328174843,0.00403762,101440.0,101430.0,0.28123684]
[1737328175217,0.0009009,101480.0,101470.0,0.098551]
[1737328175425,0.15105055,101480.0,101470.0,0.098551]
[1737328175643,0.00105055,101480.0,101470.0,0.19404988]
[1737328175840,0.00105055,101480.0,101470.0,0.28468289]
[1737328176064,0.00105055,101480.0,101470.0,0.2836975]
[1737328176484,0.00105055,101480.0,101470.0,0.28486416]
[1737328176688,0.00105055,101480.0,101470.0,0.56376416]
[1737328176869,0.0009009,101490.0,101480.0,0.16493208]
[1737328177065,0.00090154,101500.0,101490.0,0.06639108]
[1737328177300,0.00090154,101500.0,101490.0,0.5659274]
[1737328177503,0.00090154,101500.0,101490.0,0.56494258]
[1737328177741,0.01739043,101550.0,101510.0,0.06639108]
[1737328177910,0.37930404,101560.0,101530.0,0.098488]
[1737328178153,0.08389604,101560.0,101540.0,0.09945962]
[1737328178303,0.08389604,101560.0,101550.0,0.098473]
[1737328178500,0.01450329,101570.0,101550.0,1.69372052]
[1737328178869,0.295441,101550.0,101520.0,0.295506]
[1737328179097,0.098489,101540.0,101510.0,0.278109]
[1737328179331,0.32510441,101540.0,101520.0,0.00098484]
[1737328179540,0.295526,101520.0,101500.0,0.00098499]
[1737328179713,0.15550701,101550.0,101510.0,0.09451349]
[1737328179714,0.23056892,101550.0,101510.0,0.09451349]
[1737328179922,0.295456,101540.0,101520.0,0.00098479]
[1737328180223,0.295452,101540.0,101520.0,0.00098481]
[1737328180442,0.32906492,101540.0,101520.0,0.00098481]
[1737328180641,0.32906492,101540.0,101520.0,0.09948681]
[1737328180854,0.295437,101550.0,101520.0,0.2925023]
[1737328181007,0.03360892,101560.0,101520.0,0.0954983]
[1737328181224,0.03360892,101550.0,101530.0,0.00098467]
[1737328181424,0.29544,101550.0,101530.0,0.09947667]
[1737328181651,0.2954,101560.0,101540.0,0.098481]
[1737328181980,0.2954,101560.0,101510.0,1.5]
[1737328181981,0.196967,101540.0,101510.0,1.5]
[1737328182177,0.098514,101510.0,101490.0,0.295578]
[1737328182388,0.38212942,101530.0,101500.0,0.09950205]
[1737328182538,0.196999,101530.0,101500.0,0.09549854]
[1737328182740,0.00049904,101540.0,101530.0,0.098493]
[1737328182982,0.00049904,101540.0,101530.0,0.19399126]
[1737328183280,0.00049904,101540.0,101530.0,0.34058234]
[1737328183475,0.00049904,101540.0,101530.0,0.64510458]
[1737328183657,6e-05,101580.0,101570.0,0.098454]
[1737328183860,0.0002097,101580.0,101570.0,0.19395181]
[1737328184728,0.0002097,101580.0,101570.0,0.12229447]
[1737328184930,0.1971067,101580.0,101550.0,0.295402]
[1737328185175,0.32916462,101580.0,101560.0,0.00098443]
[1737328185370,0.23051692,101570.0,101540.0,0.196953]
[1737328185630,0.098463,101560.0,101550.0,0.00098453]
[1737328185834,0.098463,101560.0,101550.0,0.0009846]
[1737328185992,0.098463,101560.0,101540.0,0.0009846]
[1737328185993,0.03360892,101560.0,101540.0,0.0009846]
[1737328186180,0.098473,101550.0,101540.0,0.00098464]
[1737328186381,0.098473,101550.0,101500.0,0.277227]
[1737328186382,0.23057892,101540.0,101500.0,0.277227]
[1737328186655,0.098502,101520.0,101510.0,0.00098492]
[1737328186857,0.13211092,101520.0,101490.0,0.295573]
[1737328187057,0.098515,101510.0,101490.0,0.19303949]
[1737328187228,0.098522,101500.0,101470.0,0.277287]
[1737328187478,0.32921592,101490.0,101460.0,0.394218]
[1737328187626,0.295577,101500.0,101470.0,0.58873084]
[1737328187981,0.13211892,101520.0,101490.0,0.295591]
[1737328188226,0.13211892,101520.0,101500.0,0.0995041]
[1737328188423,0.196987,101530.0,101500.0,0.0009851]
[1737328188645,0.52211441,101530.0,101500.0,0.0009851]
[1737328188856,0.03360892,101530.0,101510.0,0.098512]
[1737328189072,0.03360892,101520.0,101490.0,1.5]
[1737328189283,0.32913492,101520.0,101500.0,0.09950591]
[1737328189456,0.13212092,101510.0,101490.0,1.59853]
[1737328189611,0.13212092,101510.0,101490.0,1.5]
[1737328189612,0.23063892,101510.0,101490.0,1.5]
[1737328189815,0.42366841,101510.0,101470.0,0.197102]
[1737328190016,0.32915492,101510.0,101480.0,0.29256569]
[1737328190241,0.52619192,101510.0,101490.0,0.09853]
[1737328190439,0.32918392,101500.0,101480.0,1.59854]
[1737328190639,0.32918392,101500.0,101470.0,0.00049904]
[1737328190640,0.13214992,101480.0,101470.0,0.00049904]
[1737328190843,0.42776292,101490.0,101470.0,0.00049904]
[1737328191098,0.13214992,101480.0,101470.0,0.00148451]
[1737328191300,0.13214992,101480.0,101470.0,0.00049904]
[1737328191431,0.42771692,101500.0,101470.0,0.09904904]
[1737328191634,0.13214692,101490.0,101470.0,1.50148448]
[1737328191867,0.098541,101480.0,101470.0,1.50148448]
[1737328192037,0.295557,101510.0,101480.0,0.098533]
[1737328192357,0.295557,101510.0,101470.0,0.09501253]
[1737328192358,0.098532,101490.0,101470.0,0.29613404]
[1737328192516,0.098523,101500.0,101480.0,0.39011349]
[1737328192726,0.098532,101490.0,101470.0,0.29613204]
[1737328192925,0.13214992,101480.0,101470.0,0.00049904]
[1737328193137,0.03360892,101480.0,101470.0,0.00049904]
[1737328193339,0.32922292,101490.0,101470.0,0.29713645]
[1737328193544,0.13213592,101500.0,101480.0,0.09854]
[1737328193750,0.23066492,101500.0,101480.0,0.00098526]
[1737328193962,0.13213792,101500.0,101480.0,0.09952526]
[1737328194162,0.32918492,101500.0,101480.0,0.09952526]
[1737328194375,0.13213792,101500.0,101480.0,0.29660726]
[1737328194580,0.295573,101500.0,101480.0,0.09549875]
[1737328194790,0.098531,101490.0,101480.0,0.09549875]
[1737328195162,0.098531,101490.0,101480.0,0.00098526]
[1737328195592,0.098541,101480.0,101470.0,0.00049904]
[1737328195793,0.197047,101500.0,101470.0,0.09501253]
[1737328195909,0.098541,101480.0,101470.0,0.00092654]
[1737328196116,0.23068392,101490.0,101470.0,0.00092654]
[1737328196117,0.295575,101500.0,101470.0,0.09642539]
[1737328196320,0.098536,101490.0,101470.0,0.39206339]
[1737328196520,0.098541,101480.0,101470.0,0.0019119]
[1737328196753,0.098541,101480.0,101470.0,0.00092654]
[1737328196948,0.13214992,101480.0,101470.0,0.00092654]
[1737328197164,0.62484392,101490.0,101470.0,0.00092654]
[1737328197381,0.62484392,101490.0,101470.0,0.00191189]
[1737328197382,0.394155,101490.0,101470.0,0.00191189]
[1737328197567,0.098541,101480.0,101470.0,0.00191189]
[1737328197723,0.62484392,101490.0,101470.0,0.09642538]
[1737328197724,0.39415,101490.0,101470.0,0.09642538]
[1737328197945,0.39415,101490.0,101470.0,0.00191182]
[1737328197946,0.098541,101480.0,101470.0,0.00191182]
[1737328198159,0.197026,101510.0,101480.0,0.098534]
[1737328198160,0.098522,101500.0,101480.0,0.098534]
[1737328198340,0.295567,101500.0,101490.0,0.00098519]
[1737328199218,0.295567,101500.0,101490.0,1.50098519]
[1737328199354,0.197064,101490.0,101470.0,0.00092654]
[1737328199543,0.32921092,101490.0,101470.0,0.10046182]
[1737328199740,0.098541,101480.0,101470.0,0.00092654]
[1737328199946,0.19305449,101480.0,101470.0,0.00092654]
[1737328200463,0.13214992,101480.0,101470.0,0.00092654]
[1737328200849,0.19305449,101480.0,101470.0,0.00092654]
[1737328201049,0.39319796,101480.0,101470.0,0.00092654]
[1737328201250,0.61782604,101480.0,101470.0,0.00092654]
[1737328201691,0.09859,101430.0,101420.0,0.00141384]
[1737328201894,0.13219892,101430.0,101420.0,0.00057775]
[1737328202094,0.19418124,101430.0,101420.0,0.00057775]
[1737328202309,0.19310349,101430.0,101420.0,0.00057775]
[1737328202932,0.53761698,101430.0,101420.0,0.00057775]
[1737328203099,0.44310349,101430.0,101420.0,0.00057775]
[1737328203534,0.46610349,101430.0,101420.0,7.5e-07]
[1737328203770,0.46610349,101430.0,101390.0,0.0004282]
[1737328203771,0.248619,101400.0,101390.0,0.0004282]
[1737328203981,0.51790404,101400.0,101390.0,0.00092466]
[1737328204177,0.59310404,101400.0,101390.0,6.6e-07]
[1737328204354,0.248648,101370.0,101360.0,0.0004282]
[1737328204590,0.34316149,101370.0,101360.0,0.00057711]
[1737328204787,0.19316149,101370.0,101360.0,0.00057711]
[1737328204996,0.13225692,101370.0,101360.0,0.00057711]
[1737328205259,0.098639,101380.0,101360.0,0.00057711]
[1737328205456,0.23088792,101380.0,101360.0,0.00156348]
[1737328205663,0.03360892,101380.0,101360.0,0.10021948]
[1737328205868,0.197265,101390.0,101360.0,0.10021948]
[1737328205869,0.13223992,101390.0,101370.0,0.098648]
[1737328205996,0.24334902,101410.0,101380.0,0.09549976]
[1737328206215,0.2097401,101410.0,101390.0,0.49329011]
[1737328206414,0.2097401,101410.0,101400.0,1.5]
[1737328206415,0.34195802,101410.0,101400.0,1.5]
[1737328206620,0.40286259,101410.0,101400.0,1.5]
[1737328206819,0.40286259,101410.0,101360.0,0.0004282]
[1737328206820,0.098648,101370.0,101360.0,0.0004282]
[1737328207140,0.52682292,101380.0,101360.0,0.10007062]
[1737328207499,0.19316149,101370.0,101360.0,0.0004282]
[1737328207708,0.19423924,101370.0,101360.0,0.00057711]
[1737328208059,0.44316149,101370.0,101360.0,0.00057711]
[1737328208446,0.22677041,101370.0,101360.0,0.00057711]
[1737328208644,0.03360892,101370.0,101360.0,0.09923511]
[1737328208846,0.19316149,101370.0,101360.0,0.00057711]
[1737328210010,0.19423924,101370.0,101360.0,0.00057711]
[1737328210217,0.29423924,101370.0,101360.0,0.00057711]
[1737328210393,0.44316149,101370.0,101360.0,0.00057711]
[1737328211135,0.29316149,101370.0,101360.0,0.00057711]
[1737328211339,0.22677041,101370.0,101360.0,0.00057711]
[1737328211516,0.59316149,101370.0,101360.0,0.00057711]
[1737328211715,0.58767498,101370.0,101360.0,0.00057711]
[1737328211876,0.34316149,101370.0,101360.0,0.00057711]
[1737328212076,0.36616149,101370.0,101360.0,0.00057711]
[1737328212700,0.46616149,101370.0,101360.0,0.00057711]
[1737328212902,0.44316149,101370.0,101360.0,0.00057711]
[1737328213150,0.34316149,101370.0,101360.0,0.00057711]
[1737328213732,0.44316149,101370.0,101360.0,0.00057711]
[1737328213918,0.098658,101360.0,101350.0,0.04985601]
[1737328214118,0.493277,101370.0,101350.0,0.05000619]
[1737328214331,0.19424924,101360.0,101350.0,0.05000619]
[1737328214526,0.44424924,101360.0,101350.0,0.05000619]
[1737328214744,0.19317149,101360.0,101350.0,0.05000619]
[1737328214893,0.57199616,101360.0,101350.0,0.04569824]
[1737328215093,0.098697,101320.0,101310.0,0.00141573]
[1737328215338,0.19321049,101320.0,101310.0,0.00057898]
[1737328215746,0.098695,101330.0,101310.0,0.00057898]
[1737328216065,0.03360892,101320.0,101310.0,0.00057898]
[1737328216605,0.13230592,101320.0,101310.0,0.00057898]
[1737328216806,0.03360892,101320.0,101310.0,0.00156597]
[1737328217079,0.03360892,101320.0,101310.0,0.00057898]
[1737328217310,0.13230592,101320.0,101310.0,0.00057898]
[1737328217583,0.03360892,101320.0,101310.0,0.10027196]
[1737328217885,0.03360892,101320.0,101310.0,0.00156596]
[1737328218312,0.35320992,101340.0,101320.0,0.197388]
[1737328218313,0.03360892,101340.0,101320.0,0.197388]
[1737328218511,0.03360892,101340.0,101320.0,0.098692]
[1737328218716,0.098689,101330.0,101310.0,0.29667498]
[1737328218921,0.42418641,101330.0,101310.0,0.09928498]
[1737328219134,0.03360892,101330.0,101320.0,0.09968193]
[1737328219336,0.03360892,101340.0,101320.0,0.49445893]
[1737328219544,0.13229592,101330.0,101320.0,1.50098693]
[1737328219680,0.13230592,101320.0,101310.0,0.00057898]
[1737328219887,0.19321049,101320.0,101310.0,0.00057898]
[1737328220091,0.03360892,101320.0,101310.0,0.00156603]
[1737328220319,0.13230592,101320.0,101310.0,0.00156603]
[1737328220841,0.13230592,101320.0,101310.0,0.00057898]
[1737328220842,0.19321049,101320.0,101310.0,0.00057898]
[1737328221181,0.03360892,101320.0,101310.0,0.00057898]
[1737328221408,0.03360892,101330.0,101300.0,0.2131605]
[1737328221607,0.00014938,101330.0,101310.0,0.09550043]
[1737328221811,0.1324463,101330.0,101310.0,0.098698]
[1737328222094,0.1324463,101330.0,101310.0,0.09969288]
[1737328222299,0.03360892,101320.0,101310.0,0.00098688]
[1737328222475,0.13231492,101310.0,101300.0,0.0157435]
[1737328222893,0.34906641,101310.0,101300.0,0.0157435]
[1737328223307,0.53684228,101310.0,101300.0,0.0157435]
[1737328223454,0.63684228,101310.0,101300.0,0.0157435]
[1737328223657,0.59906641,101310.0,101300.0,0.0157435]
[1737328223865,0.34321949,101310.0,101300.0,0.0157435]
[1737328224068,0.19321949,101310.0,101300.0,0.0157435]
[1737328224483,0.75029879,101310.0,101300.0,0.0157435]
[1737328224705,0.64906641,101310.0,101300.0,0.0157435]
[1737328224874,0.60996028,101310.0,101300.0,0.0157435]
[1737328225540,0.59906641,101310.0,101300.0,0.0157435]
[1737328225712,0.49906641,101310.0,101300.0,0.0157435]
[1737328225940,0.19321949,101310.0,101300.0,0.0157435]
[1737328226760,0.19321949,101310.0,101270.0,0.0991653]
[1737328226761,0.23104392,101300.0,101270.0,0.0991653]
[1737328226970,0.13234492,101280.0,101270.0,0.0004283]
[1737328227115,0.39066949,101300.0,101270.0,0.1979183]
[1737328227319,0.03360892,101300.0,101280.0,0.0997202]
[1737328227530,0.12812241,101300.0,101280.0,0.0009872]
[1737328227735,0.03360892,101290.0,101280.0,0.00098714]
[1737328227939,0.098719,101300.0,101280.0,0.098735]
[1737328228143,0.03360892,101300.0,101290.0,0.00098723]
[1737328228366,0.098716,101300.0,101290.0,0.00098723]
[1737328228522,0.03360892,101290.0,101280.0,0.00148303]
[1737328228724,0.03360892,101300.0,101280.0,0.19893903]
[1737328228929,0.29611,101320.0,101300.0,0.098715]
[1737328229141,0.13230792,101320.0,101310.0,0.00098702]
[1737328229348,0.03360892,101320.0,101300.0,0.00098702]
[1737328229573,0.32970692,101320.0,101300.0,1.59970302]
[1737328229789,0.32970692,101320.0,101300.0,0.09970302]
[1737328230010,0.13230592,101320.0,101300.0,0.09970302]
[1737328230220,0.03360892,101320.0,101310.0,0.098706]
[1737328230433,0.03360892,101340.0,101310.0,0.19420637]
[1737328230670,0.03360892,101330.0,101310.0,0.37814628]
[1737328230872,0.03360892,101310.0,101290.0,0.098724]
[1737328231074,0.13231692,101310.0,101290.0,0.098724]
[1737328231381,0.32975992,101300.0,101280.0,0.18092685]
[1737328231581,0.03360892,101290.0,101280.0,0.18093185]
[1737328231858,0.03360892,101290.0,101280.0,0.08219585]
[1737328231977,0.03360892,101290.0,101280.0,0.18093185]
[1737328232178,0.03360892,101290.0,101280.0,0.09923185]
[1737328232385,0.03360892,101290.0,101280.0,0.00049585]
[1737328232386,0.38547641,101290.0,101280.0,0.00049585]
[1737328232642,0.29323949,101290.0,101280.0,0.00049585]
[1737328232864,0.19323949,101290.0,101280.0,0.00049585]
[1737328232997,0.19447366,101290.0,101280.0,0.00049585]
[1737328233831,0.19323949,101290.0,101280.0,0.00049585]
[1737328234030,0.35326092,101310.0,101280.0,0.39543685]
[1737328234031,0.296123,101310.0,101280.0,0.39543685]
[1737328234238,0.13231192,101320.0,101300.0,0.098716]
[1737328234439,0.03360892,101320.0,101300.0,0.29192749]
[1737328234641,0.03360892,101320.0,101300.0,0.296148]
[1737328234876,0.13230292,101330.0,101310.0,0.098706]
[1737328235081,0.13230892,101320.0,101300.0,0.098714]
[1737328235286,0.09993369,101320.0,101300.0,0.098716]
[1737328235608,0.13230592,101320.0,101300.0,0.39064049]
[1737328235749,0.098707,101310.0,101290.0,0.296159]
[1737328235947,0.13232092,101310.0,101290.0,0.098725]
[1737328236141,0.13232092,101310.0,101290.0,0.296177]
[1737328236860,0.32973492,101310.0,101290.0,0.098725]
[1737328237089,0.13232092,101310.0,101290.0,0.098725]
[1737328237292,0.23101692,101320.0,101290.0,0.29196349]
[1737328237490,0.03360892,101350.0,101330.0,0.098682]
[1737328237646,0.13228192,101350.0,101330.0,0.098687]
[1737328237851,0.39679217,101360.0,101320.0,0.394762]
[1737328237852,0.03360892,101340.0,101320.0,0.394762]
[1737328238053,0.03360892,101330.0,101300.0,0.423418]
[1737328238279,0.03360892,101330.0,101310.0,0.09451349]
[1737328238508,0.03360892,101330.0,101320.0,0.098697]
[1737328238824,0.03360892,101330.0,101320.0,0.095397]
[1737328238825,0.0337583,101330.0,101320.0,0.095397]
[1737328239171,0.02016892,101320.0,101300.0,0.174714]
[1737328239395,0.02016892,101320.0,101290.0,0.6048903]
[1737328239396,0.11887592,101310.0,101290.0,0.098725]
[1737328239601,0.02016892,101290.0,101280.0,0.180131]
[1737328239810,0.02016892,101290.0,101270.0,0.2966453]
[1737328240012,0.197433,101300.0,101270.0,0.2966453]
[1737328240013,0.02016892,101280.0,101270.0,0.2966633]
[1737328240231,0.02016892,101280.0,101260.0,0.278895]
[1737328240450,0.02016892,101270.0,101260.0,0.098751]
[1737328240652,0.02016892,101260.0,101250.0,0.09919]
[1737328240899,0.02016892,101260.0,101250.0,0.09968585]
[1737328241087,0.74406241,101280.0,101260.0,0.098755]
[1737328241088,0.02016892,101270.0,101260.0,0.098755]
[1737328241384,0.02016892,101280.0,101260.0,0.493756]
[1737328241584,0.02016892,101280.0,101270.0,0.098745]
[1737328241969,0.02016892,101290.0,101280.0,0.098736]
[1737328242502,0.02016892,101300.0,101280.0,0.296196]
[1737328242702,0.02016892,101290.0,101280.0,0.098736]
[1737328242936,0.25,101290.0,101280.0,0.098733]
[1737328243249,0.1,101280.0,101270.0,0.296218]
[1737328243455,0.25,101270.0,101250.0,0.493791]
[1737328243651,0.25,101270.0,101260.0,0.098755]
[1737328244106,0.25049787,101280.0,101250.0,0.395033]
[1737328244262,0.15,101270.0,101260.0,0.296245]
[1737328244464,0.25049787,101280.0,101270.0,0.098745]
[1737328244684,0.10049787,101280.0,101270.0,0.098745]
[1737328244885,0.00049787,101280.0,101270.0,0.098745]
[1737328245093,0.25049787,101280.0,101270.0,0.098745]
[1737328245555,0.34923787,101280.0,101260.0,0.296243]
[1737328245760,0.25,101270.0,101250.0,0.3954692]
[1737328245914,0.25,101260.0,101250.0,0.0004282]
[1737328246115,0.25,101260.0,101250.0,0.0991932]
[1737328246321,0.24451349,101260.0,101250.0,0.0004282]
[1737328246539,0.34326849,101260.0,101250.0,0.0004282]
[1737328246984,0.24451349,101260.0,101250.0,0.0004282]
[1737328247292,0.19326849,101260.0,101250.0,0.0004282]
[1737328247406,0.19450316,101260.0,101250.0,0.0004282]
[1737328247613,0.19450308,101260.0,101250.0,0.0004282]
[1737328248026,0.34574808,101260.0,101250.0,0.0004282]
[1737328248441,0.25049787,101280.0,101270.0,0.098745]
[1737328248645,0.1,101270.0,101250.0,0.1979502]
[1737328248849,0.34326849,101260.0,101250.0,0.0004282]
[1737328249296,0.25,101260.0,101250.0,0.0991932]
[1737328249549,0.25584692,101270.0,101260.0,0.098755]
[1737328249715,0.1,101270.0,101260.0,0.296247]
[1737328249866,0.25,101260.0,101250.0,0.2967052]
[1737328250078,0.15,101270.0,101250.0,0.1979472]
[1737328250290,0.25049787,101280.0,101270.0,0.098745]
[1737328250475,0.10049787,101280.0,101270.0,0.098745]
[1737328250910,0.25049787,101280.0,101270.0,0.098745]
[1737328251201,0.60049787,101280.0,101270.0,0.098745]
[1737328251607,0.60049787,101280.0,101260.0,0.592492]
[1737328251608,0.1,101270.0,101260.0,0.296246]
[1737328251817,0.25,101270.0,101250.0,0.3954632]
[1737328252037,0.25,101270.0,101260.0,0.098755]
[1737328252620,0.24108563,101270.0,101260.0,0.098755]
[1737328253069,0.09108563,101260.0,101250.0,1.7967102]
[1737328253419,0.24108563,101270.0,101260.0,0.098755]
[1737328253996,0.09108563,101270.0,101260.0,0.098755]
[1737328254219,0.50049787,101280.0,101270.0,0.098745]
[1737328254367,0.50049787,101280.0,101270.0,0.19325849]
[1737328254573,0.50049787,101280.0,101270.0,1.69325849]
[1737328254800,0.49577823,101280.0,101270.0,1.69325849]
[1737328254951,0.37753218,101310.0,101270.0,0.46983792]
[1737328255157,0.37753218,101310.0,101300.0,0.098716]
[1737328255386,0.52753218,101310.0,101300.0,0.098716]
[1737328255592,0.09108563,101300.0,101290.0,0.296158]
[1737328255800,0.09198485,101320.0,101290.0,0.197436]
[1737328256028,0.00089922,101320.0,101310.0,0.098706]
[1737328256650,0.00089922,101320.0,101310.0,0.19321949]
[1737328256860,0.00089922,101320.0,101310.0,0.098706]
[1737328257070,0.09198485,101320.0,101310.0,0.098706]
[1737328257273,0.00089922,101320.0,101310.0,0.098706]
[1737328258000,0.00089922,101320.0,101310.0,0.19321949]
[1737328259022,0.00089922,101320.0,101310.0,0.49906641]
[1737328259221,0.00089922,101320.0,101310.0,0.54433147]
[1737328259398,0.00089922,101320.0,101310.0,0.19321949]
[1737328259880,0.09198485,101320.0,101310.0,0.098706]
[1737328260071,0.00089922,101320.0,101310.0,0.19321949]
[1737328260279,0.00089922,101320.0,101310.0,0.098706]
[1737328260401,0.24198485,101320.0,101310.0,0.098706]
[1737328260604,0.09108563,101310.0,101300.0,0.296127]
[1737328260797,0.09108563,101300.0,101280.0,0.197469]
[1737328261021,0.09108563,101300.0,101250.0,0.2702634]
[1737328261022,0.09108563,101280.0,101250.0,0.2702634]
[1737328261236,0.15,101280.0,101270.0,0.00015021]
[1737328261481,0.34324949,101280.0,101270.0,0.00015021]
[1737328261681,0.09108563,101280.0,101270.0,0.09889521]
[1737328261858,0.15584692,101300.0,101270.0,0.0946637]
[1737328261859,0.09108563,101300.0,101270.0,0.0946637]
[1737328262062,0.24198485,101320.0,101300.0,0.197433]
[1737328262242,0.24198485,101320.0,101310.0,0.098706]
[1737328262595,0.00089922,101320.0,101310.0,0.098706]
[1737328262998,0.09198485,101320.0,101310.0,0.098706]
[1737328263177,0.00089922,101320.0,101310.0,0.098706]
[1737328263586,0.09198485,101320.0,101310.0,0.098706]
[1737328263795,0.24959622,101320.0,101310.0,0.098706]
[1737328264131,0.09108563,101290.0,101260.0,0.1257]
[1737328264269,0.09108563,101280.0,101270.0,0.29636721]
[1737328264468,0.19324949,101280.0,101270.0,0.00015021]
[1737328264688,0.35033065,101280.0,101270.0,0.00015021]
[1737328264890,0.34909641,101280.0,101270.0,0.00015021]
[1737328265112,0.40036041,101280.0,101270.0,0.00015021]
[1737328265314,0.540966,101290.0,101280.0,0.098736]
[1737328265315,0.24108563,101290.0,101280.0,0.098736]
[1737328265501,0.09108563,101290.0,101280.0,0.098736]
[1737328265697,0.09108563,101280.0,101270.0,0.09889521]
[1737328266047,0.09108563,101290.0,101280.0,0.098736]
[1737328266247,0.00089922,101320.0,101310.0,0.098706]
[1737328266560,0.36014677,101320.0,101310.0,0.098706]
[1737328266689,0.21014677,101320.0,101310.0,0.098706]
[1737328267259,0.09108563,101300.0,101290.0,0.098722]
[1737328267470,0.15,101310.0,101280.0,0.197453]
[1737328267471,0.24108563,101310.0,101280.0,0.197453]
[1737328267713,0.09108563,101310.0,101300.0,0.296129]
[1737328268104,0.00089922,101320.0,101310.0,0.098706]
[1737328268311,0.00089922,101320.0,101310.0,0.19321949]
[1737328268492,0.09108563,101310.0,101300.0,0.098713]
[1737328268844,0.33980363,101300.0,101280.0,0.197459]
[1737328269051,0.00089922,101320.0,101290.0,0.197436]
[1737328269052,0.15089922,101320.0,101290.0,0.197436]
[1737328269204,0.15089922,101320.0,101310.0,0.098706]
[1737328269205,0.00089922,101320.0,101310.0,0.098706]
[1737328269407,0.34068385,101320.0,101300.0,0.493545]
[1737328269624,0.24198485,101320.0,101310.0,0.098706]
[1737328270239,0.09108563,101290.0,101280.0,0.296187]
[1737328270389,0.09108563,101310.0,101300.0,0.296143]
[1737328270605,0.24108563,101310.0,101300.0,0.09871]
[1737328271042,0.24108563,101310.0,101300.0,0.098716]
[1737328271244,0.18981163,101290.0,101280.0,0.0991593]
[1737328271448,0.24108563,101290.0,101280.0,0.0991643]
[1737328271712,0.09108563,101290.0,101280.0,0.0991593]
[1737328271956,0.09108563,101290.0,101280.0,0.2966163]
[1737328272088,0.15,101300.0,101290.0,0.098726]
[1737328272290,0.33979163,101310.0,101300.0,0.098716]
[1737328272488,0.33980563,101300.0,101280.0,0.3953463]
[1737328272849,0.33981163,101290.0,101280.0,0.0991603]
[1737328273013,0.24108563,101300.0,101280.0,0.0004283]
[1737328273177,0.24108563,101290.0,101280.0,0.0004283]
[1737328273381,0.19323949,101290.0,101280.0,0.0004283]
[1737328273628,0.42887743,101290.0,101280.0,0.0004283]
[1737328273784,0.67764326,101290.0,101280.0,0.0004283]
[1737328273986,0.098755,101260.0,101250.0,0.0004282]
[1737328274208,0.45034999,101260.0,101250.0,0.00092607]
[1737328274431,0.64451541,101260.0,101250.0,0.00092607]
[1737328274630,0.69451541,101260.0,101250.0,0.00092607]
[1737328274995,0.54451541,101260.0,101250.0,0.00092607]
[1737328275166,0.09108563,101210.0,101200.0,0.31981468]
[1737328275312,0.18988963,101210.0,101200.0,0.22100068]
[1737328275519,0.09108563,101210.0,101200.0,0.31981468]
[1737328275746,0.197578,101230.0,101200.0,0.1980407]
[1737328275747,0.24108563,101230.0,101200.0,0.1980407]
[1737328275979,0.24108563,101230.0,101220.0,0.098794]
[1737328276424,0.15,101240.0,101230.0,0.09878]
[1737328276659,0.24108563,101230.0,101220.0,0.296364]
[1737328276874,0.398804,101210.0,101200.0,0.0004287]
[1737328277085,0.248823,101190.0,101180.0,0.0004286]
[1737328277309,0.49918341,101190.0,101180.0,0.0004286]
[1737328277524,0.74918341,101190.0,101180.0,0.0004286]
[1737328277719,0.54458341,101190.0,101180.0,0.0004286]
[1737328278257,0.348833,101180.0,101170.0,0.0004288]
[1737328278461,0.74919341,101180.0,101170.0,0.0004288]
[1737328278678,0.330643,101170.0,101160.0,0.0004886]
[1737328278882,0.63080341,101170.0,101160.0,0.0004886]
[1737328279051,0.48080341,101170.0,101160.0,0.0004886]
[1737328279497,0.15,101150.0,101130.0,0.197748]
[1737328279701,0.15,101160.0,101150.0,0.098863]
[1737328279875,0.33559912,101160.0,101150.0,0.098863]
[1737328280009,0.24108563,101160.0,101150.0,0.098863]
[1737328280212,0.15,101150.0,101140.0,0.197729]
[1737328280423,0.33994863,101150.0,101130.0,0.395525]
[1737328280630,0.09108563,101130.0,101120.0,0.197771]
[1737328280840,0.09158228,101130.0,101120.0,0.296663]
[1737328281048,0.33609577,101130.0,101110.0,0.395706]
[1737328281267,0.00049665,101130.0,101120.0,0.098892]
[1737328281695,0.00049665,101130.0,101120.0,0.34340549]
[1737328281893,0.00049665,101130.0,101120.0,0.49925241]
[1737328282306,0.00049665,101130.0,101120.0,1.99925241]
[1737328282787,0.23158228,101160.0,101150.0,0.098863]
[1737328283035,0.08158228,101170.0,101160.0,0.098853]
[1737328283380,0.08158228,101170.0,101160.0,1.598853]
[1737328283825,0.08158228,101160.0,101150.0,0.296565]
[1737328284002,0.08158228,101150.0,101140.0,0.296606]